lending/lending_fUSD_20240507
["ID","MTS","AMOUNT","RATE_DAILY","PERIOD"]
[326600221,1715124644492,-511.89375056,0.00019178,2]
[326600222,1715124644502,-502.7629656,0.00019178,2]
[326600223,1715124644511,-444.70502449,0.00019178,2]
[326600224,1715124644521,-506.14537454,0.00019178,2]
[326600225,1715124644534,-500.0,0.00019178,2]
[326600226,1715124644544,-610.61,0.00019178,2]
[326600227,1715124644553,-500.0,0.00019178,2]
[326600232,1715124644563,-500.0,0.00019178,2]
[326600235,1715124644573,-504.88694961,0.00019178,2]
[326600238,1715124644583,-258.19,0.00019178,2]
[326600241,1715124644592,-507.77908909,0.00019178,2]
[326600244,1715124644601,-500.0,0.00019178,2]
[326600247,1715124644613,-515.76676159,0.00019178,2]
[326600250,1715124644623,-500.0,0.00019178,2]
[326600253,1715124644632,-500.0,0.00019178,2]
[326600256,1715124644642,-564.82126084,0.00019178,2]
[326600258,1715124644652,-500.0,0.00019178,2]
[326600260,1715124644661,-500.0,0.00019178,2]
[326600261,1715124644670,-504.82423243,0.00019178,2]
[326600262,1715124644680,-500.0,0.00019178,2]
[326600263,1715124644689,-355.42288027,0.00019178,2]
[326600264,1715124644698,-592.34,0.00019178,2]
[326600265,1715124644708,-509.21766284,0.00019178,2]
[326600266,1715124644717,-511.08790866,0.00019178,2]
[326600267,1715124644726,-500.0,0.00019178,2]
[326600268,1715124644736,-500.0,0.00019178,2]
[326600269,1715124644746,-503.61102619,0.00019178,2]
[326600270,1715124644755,-506.00947952,0.00019178,2]
[326600271,1715124644764,-495.85848805,0.00019178,2]
[326600272,1715124644774,-503.27536805,0.00019178,2]
[326600273,1715124644786,-504.55773773,0.00019178,2]
[326600274,1715124644795,-566.13352849,0.00019178,2]
[326600275,1715124644805,-500.0,0.00019178,2]
[326600276,1715124644814,-511.52505051,0.00019178,2]
[326600277,1715124644824,-500.0,0.00019178,2]
[326600278,1715124644834,-522.56,0.00019178,2]
[326600279,1715124644843,-500.0,0.00019178,2]
[326600280,1715124644852,-503.20728343,0.00019178,2]
[326600281,1715124644862,-622.42,0.00019178,2]
[326600282,1715124644871,-500.0,0.00019178,2]
[326600283,1715124644881,-500.0,0.00019178,2]
[326600284,1715124644890,-500.0,0.00019178,2]
[326600285,1715124644899,-500.0,0.00019178,2]
[326600286,1715124644909,-505.24789262,0.00019178,2]
[326600287,1715124644918,-500.0,0.00019178,2]
[326600288,1715124644927,-500.0,0.00019178,2]
[326600289,1715124644936,-512.82,0.00019178,2]
[326600290,1715124644946,-555.27,0.00019178,2]
[326600291,1715124644955,-327.33786315,0.00019178,2]
[326600292,1715124644965,-569.07,0.00019178,2]
[326600293,1715124644974,-500.0,0.00019178,2]
[326600294,1715124644984,-500.0,0.00019178,2]
[326600295,1715124644993,-500.0,0.00019178,2]
[326600296,1715124645003,-500.0,0.00019178,2]
[326600297,1715124645012,-500.0,0.00019178,2]
[326600298,1715124645022,-500.0,0.00019178,2]
[326600299,1715124645034,-500.0,0.00019178,2]
[326600300,1715124645044,-500.0,0.00019178,2]
[326600301,1715124645053,-500.0,0.00019178,2]
[326600302,1715124645062,-500.0,0.00019178,2]
[326600303,1715124645071,-500.0,0.00019178,2]
[326600304,1715124645081,-500.0,0.00019178,2]
[326600305,1715124645090,-500.0,0.00019178,2]
[326600306,1715124645099,-500.0,0.00019178,2]
[326600307,1715124645109,-259.56326842,0.00019178,2]
[326600308,1715124645118,-500.0,0.00019178,2]
[326600309,1715124645128,-641.14,0.00019178,2]
[326600310,1715124645137,-500.0,0.00019178,2]
[326600311,1715124645146,-500.0,0.00019178,2]
[326600312,1715124645155,-616.39443091,0.00019178,2]
[326600313,1715124645165,-500.0,0.00019178,2]
[326600314,1715124645175,-500.0,0.00019178,2]
[326600315,1715124645185,-500.0,0.00019178,2]
[326600316,1715124645194,-500.0,0.00019178,2]
[326600317,1715124645204,-500.0,0.00019178,2]
[326600318,1715124645214,-182.18987817,0.00019178,2]
[326600319,1715124645223,-500.0,0.00019178,2]
[326600320,1715124645233,-601.23,0.00019178,2]
[326600321,1715124645243,-500.0,0.00019178,2]
[326600322,1715124645253,-608.26,0.00019178,2]
[326600323,1715124645263,-500.0,0.00019178,2]
[326600324,1715124645273,-620.4,0.00019178,2]
[326600325,1715124645285,-500.0,0.00019178,2]
[326600326,1715124645294,-500.0,0.00019178,2]
[326600327,1715124645304,-500.0,0.00019178,2]
[326600328,1715124645313,-500.0,0.00019178,2]
[326600329,1715124645322,-500.0,0.00019178,2]
[326600330,1715124645332,-500.0,0.00019178,2]
[326600331,1715124645342,-500.0,0.00019178,2]
[326600332,1715124645352,-500.0,0.00019178,2]
[326600333,1715124645362,-577.94,0.00019178,2]
[326600334,1715124645371,-500.0,0.00019178,2]
[326600335,1715124645381,-500.0,0.00019178,2]
[326600336,1715124645394,-500.0,0.00019178,2]
[326600337,1715124645404,-609.7,0.00019178,2]
[326600338,1715124645414,-500.0,0.00019178,2]
[326600339,1715124645423,-500.0,0.00019178,2]
[326600340,1715124645433,-500.0,0.00019178,2]
[326600341,1715124645442,-500.0,0.00019178,2]
[326600342,1715124645452,-526.73977842,0.00019178,2]
[326600343,1715124645461,-626.8,0.00019178,2]
[326600344,1715124645471,-500.0,0.00019178,2]
[326600345,1715124645480,-500.0,0.00019178,2]
[326600346,1715124645490,-500.0,0.00019178,2]
[326600347,1715124645500,-500.0,0.00019178,2]
[326600348,1715124645510,-500.0,0.00019178,2]
[326600349,1715124645519,-500.0,0.00019178,2]
[326600350,1715124645535,-500.0,0.00019178,2]
[326600351,1715124645544,-500.0,0.00019178,2]
[326600352,1715124645554,-633.79,0.00019178,2]
[326600353,1715124645564,-500.0,0.00019178,2]
[326600354,1715124645574,-500.0,0.00019178,2]
[326600355,1715124645583,-500.0,0.00019178,2]
[326600356,1715124645592,-500.0,0.00019178,2]
[326600357,1715124645604,-505.64662931,0.00019178,2]
[326600358,1715124645613,-500.0,0.00019178,2]
[326600359,1715124645623,-500.0,0.00019178,2]
[326600360,1715124645632,-500.0,0.00019178,2]
[326600361,1715124645642,-500.0,0.00019178,2]
[326600362,1715124645652,-513.75443489,0.00019178,2]
[326600363,1715124645661,-500.0,0.00019178,2]
[326600364,1715124645671,-500.0,0.00019178,2]
[326600365,1715124645680,-500.0,0.00019178,2]
[326600366,1715124645690,-419.48540225,0.00019178,2]
[326600367,1715124645700,-500.0,0.00019178,2]
[326600368,1715124645710,-503.39770177,0.00019178,2]
[326600369,1715124645720,-500.0,0.00019178,2]
[326600370,1715124645729,-500.0,0.00019178,2]
[326600371,1715124645739,-500.0,0.00019178,2]
[326600372,1715124645748,-500.0,0.00019178,2]
[326600373,1715124645758,-500.0,0.00019178,2]
[326600374,1715124645767,-500.0,0.00019178,2]
[326600375,1715124645777,-516.77050557,0.00019178,2]
[326600376,1715124645788,-500.0,0.00019178,2]
[326600377,1715124645797,-500.0,0.00019178,2]
[326600378,1715124645806,-500.0,0.00019178,2]
[326600379,1715124645815,-500.0,0.00019178,2]
[326600380,1715124645825,-500.0,0.00019178,2]
[326600381,1715124645834,-500.0,0.00019178,2]
[326600382,1715124645843,-500.0,0.00019178,2]
[326600383,1715124645852,-500.0,0.00019178,2]
[326600384,1715124645861,-500.0,0.00019178,2]
[326600385,1715124645870,-500.0,0.00019178,2]
[326600386,1715124645880,-500.0,0.00019178,2]
[326600387,1715124645889,-500.0,0.00019178,2]
[326600388,1715124645899,-500.0,0.00019178,2]
[326600389,1715124645908,-500.0,0.00019178,2]
[326600390,1715124645917,-500.0,0.00019178,2]
[326600391,1715124645927,-500.0,0.00019178,2]
[326600392,1715124645937,-504.85085605,0.00019178,2]
[326600393,1715124645946,-500.0,0.00019178,2]
[326600394,1715124645955,-500.0,0.00019178,2]
[326600395,1715124645965,-500.0,0.00019178,2]
[326600396,1715124645974,-538.03,0.00019178,2]
[326600397,1715124645983,-500.0,0.00019178,2]
[326600398,1715124645994,-575.31,0.00019178,2]
[326600399,1715124646003,-500.0,0.00019178,2]
[326600400,1715124646013,-500.0,0.00019178,2]
[326600401,1715124646023,-500.0,0.00019178,2]
[326600402,1715124646033,-500.0,0.00019178,2]
[326600403,1715124646042,-500.0,0.00019178,2]
[326600404,1715124646052,-500.0,0.00019178,2]
[326600405,1715124646061,-500.0,0.00019178,2]
[326600406,1715124646070,-500.0,0.00019178,2]
[326600407,1715124646080,-500.0,0.00019178,2]
[326600408,1715124646089,-500.0,0.00019178,2]
[326600409,1715124646098,-504.96051858,0.00019178,2]
[326600410,1715124646108,-500.0,0.00019178,2]
[326600411,1715124646117,-500.0,0.00019178,2]
[326600412,1715124646127,-500.0,0.00019178,2]
[326600413,1715124646136,-500.0,0.00019178,2]
[326600414,1715124646146,-500.0,0.00019178,2]
[326600415,1715124646155,-505.0,0.00019178,2]
[326600416,1715124646165,-500.0,0.00019178,2]
[326600417,1715124646174,-580.24,0.00019178,2]
[326600418,1715124646184,-292.94434183,0.00019178,2]
[326600419,1715124646193,-500.0,0.00019178,2]
[326600420,1715124646203,-500.0,0.00019178,2]
[326600421,1715124646212,-500.0,0.00019178,2]
[326600422,1715124646222,-500.0,0.00019178,2]
[326600423,1715124646231,-500.0,0.00019178,2]
[326600424,1715124646241,-500.0,0.00019178,2]
[326600425,1715124646250,-500.0,0.00019178,2]
[326600426,1715124646259,-500.0,0.00019178,2]
[326600427,1715124646268,-500.0,0.00019178,2]
[326600428,1715124646278,-500.0,0.00019178,2]
[326600429,1715124646289,-500.0,0.00019178,2]
[326600430,1715124646299,-500.0,0.00019178,2]
[326600431,1715124646308,-500.0,0.00019178,2]
[326600432,1715124646318,-500.0,0.00019178,2]
[326600433,1715124646327,-500.0,0.00019178,2]
[326600434,1715124646337,-500.0,0.00019178,2]
[326600435,1715124646346,-500.0,0.00019178,2]
[326600436,1715124646355,-500.0,0.00019178,2]
[326600437,1715124646366,-500.0,0.00019178,2]
[326600438,1715124646375,-500.0,0.00019178,2]
[326600439,1715124646384,-500.0,0.00019178,2]
[326600440,1715124646395,-500.0,0.00019178,2]
[326600441,1715124646405,-500.0,0.00019178,2]
[326600442,1715124646415,-500.0,0.00019178,2]
[326600443,1715124646424,-500.0,0.00019178,2]
[326600444,1715124646434,-620.27,0.00019178,2]
[326600445,1715124646443,-500.0,0.00019178,2]
[326600446,1715124646590,-500.0,0.00019178,2]
[326600447,1715124646602,-500.0,0.00019178,2]
[326600448,1715124646612,-500.0,0.00019178,2]
[326600449,1715124646621,-245.84295212,0.00019178,2]
[326600450,1715124646631,-500.0,0.00019178,2]
[326600451,1715124646640,-500.0,0.00019178,2]
[326600453,1715124646650,-500.0,0.00019178,2]
[326600455,1715124646659,-500.0,0.00019178,2]
[326600456,1715124646668,-500.0,0.00019178,2]
[326600457,1715124646678,-500.0,0.00019178,2]
[326600458,1715124646687,-500.0,0.00019178,2]
[326600459,1715124646697,-500.0,0.00019178,2]
[326600460,1715124646706,-500.0,0.00019178,2]
[326600461,1715124646716,-500.0,0.00019178,2]
[326600462,1715124646726,-500.0,0.00019178,2]
[326600463,1715124646735,-500.0,0.00019178,2]
[326600464,1715124646745,-500.0,0.00019178,2]
[326600465,1715124646755,-500.0,0.00019178,2]
[326600466,1715124646764,-500.0,0.00019178,2]
[326600467,1715124646773,-500.0,0.00019178,2]
[326600468,1715124646783,-500.0,0.00019178,2]
[326600469,1715124646792,-500.0,0.00019178,2]
[326600470,1715124646801,-568.76,0.00019178,2]
[326600471,1715124646811,-500.0,0.00019178,2]
[326600472,1715124646820,-500.0,0.00019178,2]
[326600473,1715124646830,-500.0,0.00019178,2]
[326600474,1715124646839,-500.0,0.00019178,2]
[326600475,1715124646848,-500.0,0.00019178,2]
[326600476,1715124646858,-500.0,0.00019178,2]
[326600477,1715124646867,-500.0,0.00019178,2]
[326600478,1715124646877,-500.0,0.00019178,2]
[326600479,1715124646887,-500.0,0.00019178,2]
[326600480,1715124646898,-500.0,0.00019178,2]
[326600481,1715124646908,-500.0,0.00019178,2]
[326600482,1715124646918,-500.0,0.00019178,2]
[326600483,1715124646928,-500.0,0.00019178,2]
[326600484,1715124646937,-500.0,0.00019178,2]
[326600485,1715124646947,-582.1,0.00019178,2]
[326600486,1715124646956,-500.0,0.00019178,2]
[326600487,1715124646965,-503.17211382,0.00019178,2]
[326600488,1715124646974,-500.0,0.00019178,2]
[326600489,1715124646984,-500.0,0.00019178,2]
[326600490,1715124646994,-500.0,0.00019178,2]
[326600491,1715124647003,-503.95982516,0.00019178,2]
[326600492,1715124647012,-502.79983626,0.00019178,2]
[326600493,1715124647023,-500.0,0.00019178,2]
[326600494,1715124647033,-500.0,0.00019178,2]
[326600495,1715124647043,-500.0,0.00019178,2]
[326600496,1715124647052,-508.75248142,0.00019178,2]
[326600497,1715124647062,-500.0,0.00019178,2]
[326600498,1715124647071,-500.0,0.00019178,2]
[326600499,1715124647081,-507.64672141,0.00019178,2]
[326600500,1715124647091,-500.0,0.00019178,2]
[326600501,1715124647101,-611.03,0.00019178,2]
[326600502,1715124647111,-500.0,0.00019178,2]
[326600503,1715124647121,-500.0,0.00019178,2]
[326600504,1715124647130,-502.258073,0.00019178,2]
[326600505,1715124647139,-500.0,0.00019178,2]
[326600506,1715124647149,-602.41,0.00019178,2]
[326600507,1715124647159,-500.0,0.00019178,2]
[326600508,1715124647169,-500.0,0.00019178,2]
[326600509,1715124647178,-542.55,0.00019178,2]
[326600510,1715124647187,-500.0,0.00019178,2]
[326600511,1715124647197,-556.4,0.00019178,2]
[326600512,1715124647207,-500.0,0.00019178,2]
[326600513,1715124647217,-500.0,0.00019178,2]
[326600514,1715124647226,-504.01303153,0.00019178,2]
[326600515,1715124647236,-504.95689726,0.00019178,2]
[326600516,1715124647245,-331.6946527,0.00019178,2]
[326600517,1715124647255,-500.0,0.00019178,2]
[326600518,1715124647264,-500.0,0.00019178,2]
[326600519,1715124647273,-500.0,0.00019178,2]
[326600520,1715124647284,-504.89508429,0.00019178,2]
[326600521,1715124647294,-500.0,0.00019178,2]
[326600522,1715124647303,-500.0,0.00019178,2]
[326600523,1715124647313,-500.0,0.00019178,2]
[326600524,1715124647323,-500.0,0.00019178,2]
[326600525,1715124647332,-293.88940369,0.00019178,2]
[326600526,1715124647343,-412.63648334,0.00019178,2]
[326600527,1715124647352,-500.0,0.00019178,2]
[326600528,1715124647362,-500.0,0.00019178,2]
[326600529,1715124647371,-500.0,0.00019178,2]
[326600530,1715124647381,-500.0,0.00019178,2]
[326600531,1715124647392,-500.0,0.00019178,2]
[326600532,1715124647402,-500.0,0.00019178,2]
[326600533,1715124647412,-500.0,0.00019178,2]
[326600534,1715124647421,-515.60008395,0.00019178,2]
[326600535,1715124647431,-500.0,0.00019178,2]
[326600536,1715124647441,-498.87802555,0.00019178,2]
[326600537,1715124647452,-500.0,0.00019178,2]
[326600538,1715124647462,-500.0,0.00019178,2]
[326600539,1715124647471,-500.0,0.00019178,2]
[326600540,1715124647481,-626.498264,0.00019178,2]
[326600541,1715124647491,-164.72,0.00019178,2]
[326600542,1715124647500,-350.62,0.00019178,2]
[326600543,1715124647510,-166.84,0.00019178,2]
[326600544,1715124647520,-3876.01243216,0.000192,2]
[326600545,1715124647534,-400.0,0.000192,2]
[326600546,1715124647543,-191.7,0.000192,2]
[326600547,1715124647553,-212.72954156,0.0001922,2]
[326600548,1715124647562,-800.0,0.00019233,2]
[326600549,1715124647573,-500.0,0.0001925,2]
[326600550,1715124647582,-500.0,0.00019251,2]
[326600551,1715124647591,-500.0,0.00019251,2]
[326600552,1715124647602,-500.0,0.00019251,2]
[326600553,1715124647611,-500.0,0.00019251,2]
[326600554,1715124647621,-500.0,0.00019251,2]
[326600555,1715124647631,-329.71887269,0.00019251,2]
[326600556,1715124647640,-1561.8,0.00019288,2]
[326600557,1715124647650,-162.14902037,0.00019289,2]
[326600558,1715124647660,-487.16116954,0.0001935,2]
[326600559,1715124647669,-156.54615737,0.0001935,2]
[326600560,1715124647679,-500.0,0.00019351,2]
[326600561,1715124647688,-500.0,0.00019351,2]
[326600562,1715124647697,-500.0,0.00019351,2]
[326600563,1715124647707,-500.0,0.00019351,2]
[326600564,1715124647716,-500.0,0.00019351,2]
[326600565,1715124647725,-500.0,0.00019351,2]
[326600566,1715124647735,-500.0,0.00019351,2]
[326600567,1715124647745,-500.0,0.00019351,2]
[326600568,1715124647754,-595.72,0.00019351,2]
[326600569,1715124647764,-506.68383657,0.00019351,2]
[326600570,1715124647773,-500.0,0.00019351,2]
[326600571,1715124647783,-500.0,0.00019351,2]
[326600572,1715124647792,-500.0,0.00019351,2]
[326600573,1715124647802,-509.50679982,0.00019351,2]
[326600574,1715124647812,-500.0,0.00019351,2]
[326600575,1715124647821,-500.0,0.00019351,2]
[326600576,1715124647831,-500.0,0.00019351,2]
[326600577,1715124647840,-508.87024458,0.00019351,2]
[326600578,1715124647850,-500.0,0.00019351,2]
[326600579,1715124647859,-500.0,0.00019351,2]
[326600580,1715124647868,-500.0,0.00019351,2]
[326600581,1715124647878,-500.0,0.00019351,2]
[326600582,1715124647887,-500.0,0.00019351,2]
[326600583,1715124647896,-151.20068186,0.00019351,2]
[326600584,1715124647907,-506.037813,0.00019351,2]
[326600585,1715124647917,-616.83,0.00019351,2]
[326600586,1715124647926,-500.0,0.00019351,2]
[326600587,1715124647936,-500.0,0.00019351,2]
[326600588,1715124647945,-506.74445568,0.00019351,2]
[326600589,1715124647954,-510.39,0.00019351,2]
[326600590,1715124647963,-500.0,0.00019351,2]
[326600591,1715124647973,-500.0,0.00019351,2]
[326600592,1715124647982,-500.0,0.00019351,2]
[326600593,1715124647991,-616.16,0.00019351,2]
[326600594,1715124648000,-500.0,0.00019351,2]
[326600595,1715124648010,-500.0,0.00019351,2]
[326600596,1715124648020,-519.64195693,0.00019351,2]
[326600597,1715124648029,-500.0,0.00019351,2]
[326600598,1715124648041,-500.0,0.00019351,2]
[326600599,1715124648051,-500.0,0.00019351,2]
[326600600,1715124648060,-500.0,0.00019351,2]
[326600601,1715124648069,-500.0,0.00019351,2]
[326600602,1715124648079,-500.5653392,0.00019351,2]
[326600603,1715124648089,-500.0,0.00019351,2]
[326600604,1715124648098,-510.71763695,0.00019351,2]
[326600605,1715124648108,-500.0,0.00019351,2]
[326600606,1715124648117,-511.49,0.00019351,2]
[326600607,1715124648127,-500.0,0.00019351,2]
[326600608,1715124648136,-500.0,0.00019351,2]
[326600609,1715124648145,-500.0,0.00019351,2]
[326600610,1715124648154,-500.0,0.00019351,2]
[326600611,1715124648164,-501.99662462,0.00019351,2]
[326600612,1715124648173,-501.71291394,0.00019351,2]
[326600613,1715124648183,-500.0,0.00019351,2]
[326600614,1715124648193,-500.0,0.00019351,2]
[326600615,1715124648203,-500.0,0.00019351,2]
[326600616,1715124648212,-500.0,0.00019351,2]
[326600617,1715124648222,-500.0,0.00019351,2]
[326600618,1715124648231,-500.0,0.00019351,2]
[326600619,1715124648241,-500.0,0.00019351,2]
[326600620,1715124648250,-500.0,0.00019351,2]
[326600621,1715124648260,-500.0,0.00019351,2]
[326600622,1715124648269,-502.15369378,0.00019351,2]
[326600623,1715124648279,-500.0,0.00019351,2]
[326600624,1715124648291,-566.13,0.00019351,2]
[326600625,1715124648300,-500.0,0.00019351,2]
[326600626,1715124648310,-500.0,0.00019351,2]
[326600627,1715124648319,-500.0,0.00019351,2]
[326600628,1715124648329,-504.67019061,0.00019351,2]
[326600629,1715124648338,-500.0,0.00019351,2]
[326600630,1715124648348,-500.0,0.00019351,2]
[326600631,1715124648358,-500.0,0.00019351,2]
[326600632,1715124648368,-500.0,0.00019351,2]
[326600633,1715124648377,-502.04920165,0.00019351,2]
[326600634,1715124648389,-500.0,0.00019351,2]
[326600635,1715124648399,-579.92508089,0.00019351,2]
[326600636,1715124648408,-609.48,0.00019351,2]
[326600637,1715124648418,-500.0,0.00019351,2]
[326600638,1715124648428,-500.0,0.00019351,2]
[326600639,1715124648438,-500.0,0.00019351,2]
[326600640,1715124648448,-558.11,0.00019351,2]
[326600641,1715124648457,-503.75166441,0.00019351,2]
[326600642,1715124648468,-500.0,0.00019351,2]
[326600643,1715124648478,-500.0,0.00019351,2]
[326600644,1715124648488,-500.0,0.00019351,2]
[326600645,1715124648498,-500.0,0.00019351,2]
[326600646,1715124648507,-502.5424485,0.00019351,2]
[326600647,1715124648517,-502.35940688,0.00019351,2]
[326600648,1715124648531,-500.0,0.00019351,2]
[326600649,1715124648542,-153.98340645,0.00019428,2]
[326600650,1715124648552,-684.11329581,0.00019451,2]
[326600651,1715124648561,-213.67,0.00019452,2]
[326600652,1715124648571,-500.0,0.00019452,2]
[326600653,1715124648580,-421.26,0.00019452,2]
[326600654,1715124648590,-272.46,0.00019452,2]
[326600655,1715124648599,-492.11,0.00019452,2]
[326600656,1715124648609,-438.3,0.00019452,2]
[326600657,1715124648618,-262.25,0.00019452,2]
[326600658,1715124648628,-547.02,0.00019452,2]
[326600659,1715124648638,-500.0,0.00019452,2]
[326600660,1715124648646,-430.74,0.00019452,2]
[326600661,1715124648655,-565.06,0.00019452,2]
[326600662,1715124648666,-554.99,0.00019452,2]
[326600663,1715124648676,-325.25,0.00019452,2]
[326600664,1715124648686,-500.0,0.00019452,2]
[326600665,1715124648696,-221.65,0.00019452,2]
[326600666,1715124648706,-352.89,0.00019452,2]
[326600667,1715124648716,-500.0,0.00019452,2]
[326600668,1715124648725,-500.0,0.00019452,2]
[326600669,1715124648735,-411.42,0.00019452,2]
[326600670,1715124648745,-500.0,0.00019452,2]
[326600671,1715124648754,-500.0,0.00019452,2]
[326600672,1715124648763,-500.0,0.00019452,2]
[326600673,1715124648773,-500.0,0.00019452,2]
[326600674,1715124648782,-500.0,0.00019452,2]
[326600675,1715124648794,-394.83,0.00019452,2]
[326600676,1715124648804,-500.0,0.00019452,2]
[326600677,1715124648814,-620.97,0.00019452,2]
[326600678,1715124648823,-188.39,0.00019452,2]
[326600679,1715124648833,-604.05,0.00019452,2]
[326600680,1715124648843,-168.61,0.00019452,2]
[326600681,1715124648853,-508.21,0.00019452,2]
[326600682,1715124648863,-599.9,0.00019452,2]
[326600683,1715124648873,-500.0,0.00019452,2]
[326600684,1715124648883,-534.6,0.00019452,2]
[326600685,1715124648892,-500.0,0.00019452,2]
[326600686,1715124648901,-500.0,0.00019452,2]
[326600687,1715124648942,-500.0,0.00019452,2]
[326600688,1715124648952,-500.0,0.00019452,2]
[326600689,1715124648962,-500.0,0.00019452,2]
[326600690,1715124648971,-500.0,0.00019452,2]
[326600691,1715124648980,-500.0,0.00019452,2]
[326600692,1715124648989,-500.0,0.00019452,2]
[326600693,1715124648999,-500.0,0.00019452,2]
[326600694,1715124649008,-500.0,0.00019452,2]
[326600695,1715124649018,-500.0,0.00019452,2]
[326600696,1715124649027,-500.0,0.00019452,2]
[326600697,1715124649041,-284.12,0.00019452,2]
[326600698,1715124649057,-172.22,0.00019452,2]
[326600699,1715124649066,-151.52,0.00019452,2]
[326600700,1715124649076,-193.75,0.00019452,2]
[326600701,1715124649085,-160.21,0.00019452,2]
[326600702,1715124649094,-341.81,0.00019452,2]
[326600703,1715124649103,-385.47,0.00019452,2]
[326600704,1715124649112,-500.0,0.00019452,2]
[326600705,1715124649122,-150.10839543,0.00019452,2]
[326600706,1715124649131,-500.0,0.00019452,2]
[326600707,1715124649142,-500.0,0.00019452,2]
[326600708,1715124649151,-246.48,0.00019452,2]
[326600709,1715124649160,-165.98,0.00019452,2]
[326600710,1715124649169,-215.57,0.00019452,2]
[326600711,1715124649178,-457.64,0.00019452,2]
[326600712,1715124649187,-573.57,0.00019452,2]
[326600713,1715124649197,-500.0,0.00019452,2]
[326600714,1715124649206,-465.77,0.00019452,2]
[326600715,1715124649215,-500.0,0.00019452,2]
[326600716,1715124649224,-500.0,0.00019452,2]
[326600717,1715124649234,-500.0,0.00019452,2]
[326600718,1715124649243,-181.48,0.00019452,2]
[326600719,1715124649252,-198.35,0.00019452,2]
[326600720,1715124649262,-500.0,0.00019452,2]
[326600721,1715124649271,-182.31,0.00019452,2]
[326600722,1715124649280,-348.39,0.00019452,2]
[326600723,1715124649291,-500.0,0.00019452,2]
[326600724,1715124649300,-500.0,0.00019452,2]
[326600725,1715124649309,-507.12966247,0.00019452,2]
[326600726,1715124649318,-500.0,0.00019452,2]
[326600727,1715124649328,-352.43,0.00019452,2]
[326600728,1715124649337,-500.0,0.00019452,2]
[326600729,1715124649347,-500.0,0.00019452,2]
[326600730,1715124649356,-414.52,0.00019452,2]
[326600731,1715124649366,-500.0,0.00019452,2]
[326600732,1715124649375,-500.0,0.00019452,2]
[326600733,1715124649384,-500.0,0.00019452,2]
[326600734,1715124649397,-500.0,0.00019452,2]
[326600735,1715124649406,-306.5,0.00019452,2]
[326600736,1715124649416,-500.0,0.00019452,2]
[326600737,1715124649426,-500.0,0.00019452,2]
[326600738,1715124649436,-522.45,0.00019452,2]
[326600739,1715124649445,-633.55874987,0.00019452,2]
[326600740,1715124649454,-281.1,0.00019452,2]
[326600741,1715124649463,-500.0,0.00019452,2]
[326600742,1715124649472,-500.0,0.00019452,2]
[326600743,1715124649482,-500.0,0.00019452,2]
[326600744,1715124649491,-500.0,0.00019452,2]